[Event "Titled Tuesday Blitz April 11 Early 2023"]
[White "Jumanov, Elbek"]
[Black "Mamedov, Edgar"]
[WhiteFideId "14202905"]
[BlackFideId "13739980"]
[WhiteElo "2055"]
[BlackElo "2330"]
[Result "1-0"]
[Round "06"]
[TimeControl "180+2"]
[Date "2023.04.11"]
[WhiteClock "0:00:03"]
[BlackClock "0:00:01"]

1. c4 {[%clk 0:03:00]}  c6 {[%clk 0:02:59]} 2. Nf3 {[%clk 0:03:00]}  d5 {[%clk 0:02:59]} 3. d4 {[%clk 0:03:01]}  Nf6 {[%clk 0:02:59]} 4. g3 {[%clk 0:03:01]}  Bf5 {[%clk 0:02:57]} 5. Bg2 {[%clk 0:03:01]}  e6 {[%clk 0:02:58]} 6. O-O {[%clk 0:03:01]}  Nbd7 {[%clk 0:02:52]} 7. Nc3 {[%clk 0:03:00]}  h6 {[%clk 0:02:52]} 8. b3 {[%clk 0:02:55]}  Be7 {[%clk 0:02:51]} 9. Bb2 {[%clk 0:02:54]}  O-O {[%clk 0:02:51]} 10. Nd2 {[%clk 0:02:51]}  a5 {[%clk 0:02:24]} 11. a3 {[%clk 0:02:50]}  Qb6 {[%clk 0:02:22]} 12. e3 {[%clk 0:02:46]}  Qa6 {[%clk 0:02:17]} 13. Re1 {[%clk 0:02:44]}  a4 {[%clk 0:02:11]} 14. Nxa4 {[%clk 0:02:23]}  dxc4 {[%clk 0:02:10]} 15. Nc3 {[%clk 0:02:07]}  cxb3 {[%clk 0:02:08]} 16. Qxb3 {[%clk 0:02:06]}  Nb6 {[%clk 0:02:03]} 17. e4 {[%clk 0:01:40]}  Bh7 {[%clk 0:02:02]} 18. d5 {[%clk 0:01:29]}  cxd5 {[%clk 0:01:38]} 19. exd5 {[%clk 0:01:29]}  Bf5 {[%clk 0:01:38]} 20. dxe6 {[%clk 0:00:43]}  Bxe6 {[%clk 0:01:36]} 21. Rxe6 {[%clk 0:00:44]}  fxe6 {[%clk 0:01:36]} 22. Qxe6+ {[%clk 0:00:45]}  Rf7 {[%clk 0:01:35]} 23. Bf1 {[%clk 0:00:45]}  Qa5 {[%clk 0:01:10]} 24. Nc4 {[%clk 0:00:45]}  Nxc4 {[%clk 0:00:40]} 25. Bxc4 {[%clk 0:00:44]}  Rf8 {[%clk 0:00:39]} 26. Qxe7 {[%clk 0:00:42]}  Qh5 {[%clk 0:00:38]} 27. h4 {[%clk 0:00:24]}  Ng4 {[%clk 0:00:32]} 28. Ne4 {[%clk 0:00:21]}  Kh7 {[%clk 0:00:25]} 29. Bxf7 {[%clk 0:00:19]}  Rxf7 {[%clk 0:00:25]} 30. Qd8 {[%clk 0:00:16]}  Qf5 {[%clk 0:00:23]} 31. Qd3 {[%clk 0:00:14]}  Qg6 {[%clk 0:00:12]} 32. Rd1 {[%clk 0:00:10]}  Re7 {[%clk 0:00:10]} 33. Nc5 {[%clk 0:00:09]}  Qxd3 {[%clk 0:00:06]} 34. Nxd3 {[%clk 0:00:09]}  Rd7 {[%clk 0:00:05]} 35. Kf1 {[%clk 0:00:09]}  Nh2+ {[%clk 0:00:04]} 36. Ke2 {[%clk 0:00:08]}  Re7+ {[%clk 0:00:05]} 37. Kd2 {[%clk 0:00:07]}  Nf3+ {[%clk 0:00:05]} 38. Kc3 {[%clk 0:00:07]}  Rc7+ {[%clk 0:00:05]} 39. Kb3 {[%clk 0:00:06]}  Rd7 {[%clk 0:00:04]} 40. Kc2 {[%clk 0:00:06]}  Rc7+ {[%clk 0:00:04]} 41. Kb1 {[%clk 0:00:06]}  Rd7 {[%clk 0:00:04]} 42. Bc3 {[%clk 0:00:06]}  Rc7 {[%clk 0:00:04]} 43. Kb2 {[%clk 0:00:05]}  Rd7 {[%clk 0:00:04]} 44. Kc2 {[%clk 0:00:04]}  Rc7 {[%clk 0:00:04]} 45. Nf4 {[%clk 0:00:04]}  b5 {[%clk 0:00:02]} 46. Kb2 {[%clk 0:00:04]}  Re7 {[%clk 0:00:01]} 47. Rd5 {[%clk 0:00:04]}  Re1 {[%clk 0:00:01]} 48. Kb3 {[%clk 0:00:05]}  Rb1+ {[%clk 0:00:01]} 49. Kc2 {[%clk 0:00:05]}  Rf1 {[%clk 0:00:01]} 50. Rd7 {[%clk 0:00:05]}  Rxf2+ {[%clk 0:00:01]} 51. Kb3 {[%clk 0:00:05]}  Kg8 {[%clk 0:00:02]} 52. Rxg7+ {[%clk 0:00:05]}  Kf8 {[%clk 0:00:02]} 53. Ne6+ {[%clk 0:00:05]}  Ke8 {[%clk 0:00:02]} 54. Bb4 {[%clk 0:00:05]}  Nd2+ {[%clk 0:00:01]} 55. Kc3 {[%clk 0:00:02]}  Ne4+ {[%clk 0:00:01]} 56. Kd4 {[%clk 0:00:03]} 1-0


[Site "https://www.chess.com"]

[Event "Titled Tuesday Blitz April 11 Early 2023"]
[White "La Villa Rivas, Marlon Javier"]
[Black "Hua, Lefong"]
[WhiteFideId "3519546"]
[BlackFideId "2602253"]
[WhiteElo "2135"]
[BlackElo "2607"]
[Result "0-1"]
[Round "06"]
[TimeControl "180+2"]
[Date "2023.04.11"]
[WhiteClock "0:02:16"]
[BlackClock "0:01:34"]

1. e4 {[%clk 0:03:00]}  c5 {[%clk 0:02:59]} 2. Nf3 {[%clk 0:02:59]}  g6 {[%clk 0:03:00]} 3. d4 {[%clk 0:02:58]}  cxd4 {[%clk 0:03:01]} 4. Qxd4 {[%clk 0:02:58]}  Nf6 {[%clk 0:03:00]} 5. e5 {[%clk 0:02:59]}  Nc6 {[%clk 0:03:00]} 6. Qa4 {[%clk 0:02:59]}  Nd5 {[%clk 0:03:00]} 7. Qe4 {[%clk 0:03:00]}  Nb6 {[%clk 0:03:00]} 8. Bb5 {[%clk 0:02:49]}  Bg7 {[%clk 0:02:56]} 9. O-O {[%clk 0:02:45]}  O-O {[%clk 0:02:50]} 10. Rd1 {[%clk 0:02:44]}  d5 {[%clk 0:02:37]} 11. exd6 {[%clk 0:02:44]}  Bf5 {[%clk 0:02:35]} 12. Qe2 {[%clk 0:02:42]}  exd6 {[%clk 0:02:32]} 13. Nc3 {[%clk 0:02:39]}  a6 {[%clk 0:02:21]} 14. Bd3 {[%clk 0:02:33]}  Re8 {[%clk 0:02:10]} 15. Be3 {[%clk 0:02:32]}  Bg4 {[%clk 0:02:02]} 16. h3 {[%clk 0:02:30]}  Nd4 {[%clk 0:01:59]} 17. Bxd4 {[%clk 0:02:24]}  Rxe2 {[%clk 0:01:55]} 18. Bxe2 {[%clk 0:02:25]}  Bxf3 {[%clk 0:01:50]} 19. Bxf3 {[%clk 0:02:24]}  Nc4 {[%clk 0:01:44]} 20. b3 {[%clk 0:02:21]}  Bxd4 {[%clk 0:01:38]} 21. Rxd4 {[%clk 0:02:19]}  Ne5 {[%clk 0:01:37]} 22. Bxb7 {[%clk 0:02:19]}  Qb6 {[%clk 0:01:34]} 23. Bxa8 {[%clk 0:02:16]}  Qxd4 {[%clk 0:01:34]} 0-1


[Site "https://www.chess.com"]

[Event "Titled Tuesday Blitz April 11 Early 2023"]
[White "Rose, Felix"]
[Black "Ozates, Tuna"]
[WhiteFideId "5105722"]
[BlackFideId "6354521"]
[WhiteElo "2039"]
[BlackElo "2151"]
[Result "0-1"]
[Round "06"]
[TimeControl "180+2"]
[Date "2023.04.11"]
[WhiteClock "0:00:03"]
[BlackClock "0:00:12"]

1. e4 {[%clk 0:02:59]}  e5 {[%clk 0:02:56]} 2. Nf3 {[%clk 0:02:59]}  Nc6 {[%clk 0:02:57]} 3. Bb5 {[%clk 0:02:59]}  a6 {[%clk 0:02:56]} 4. Ba4 {[%clk 0:02:59]}  Nge7 {[%clk 0:02:56]} 5. O-O {[%clk 0:02:58]}  g6 {[%clk 0:02:57]} 6. c3 {[%clk 0:02:57]}  Bg7 {[%clk 0:02:57]} 7. d4 {[%clk 0:02:57]}  exd4 {[%clk 0:02:58]} 8. Nxd4 {[%clk 0:02:50]}  O-O {[%clk 0:02:52]} 9. Re1 {[%clk 0:02:48]}  b5 {[%clk 0:02:52]} 10. Bb3 {[%clk 0:02:45]}  h6 {[%clk 0:02:48]} 11. Nf3 {[%clk 0:02:42]}  d6 {[%clk 0:02:48]} 12. h3 {[%clk 0:02:41]}  Kh7 {[%clk 0:02:48]} 13. Nbd2 {[%clk 0:02:37]}  Be6 {[%clk 0:02:48]} 14. Bc2 {[%clk 0:02:35]}  Qd7 {[%clk 0:02:46]} 15. Nf1 {[%clk 0:02:34]}  Rae8 {[%clk 0:02:45]} 16. Ng3 {[%clk 0:02:33]}  f5 {[%clk 0:02:40]} 17. exf5 {[%clk 0:02:27]}  Nxf5 {[%clk 0:02:41]} 18. Nxf5 {[%clk 0:02:23]}  Bxf5 {[%clk 0:02:42]} 19. Rxe8 {[%clk 0:02:11]}  Rxe8 {[%clk 0:02:38]} 20. Bxf5 {[%clk 0:02:05]}  Qxf5 {[%clk 0:02:38]} 21. Be3 {[%clk 0:02:02]}  Na5 {[%clk 0:02:33]} 22. Bd4 {[%clk 0:01:54]}  Bf8 {[%clk 0:02:26]} 23. b4 {[%clk 0:01:07]}  Nc4 {[%clk 0:02:15]} 24. Nh4 {[%clk 0:00:35]}  Qe4 {[%clk 0:02:06]} 25. Qg4 {[%clk 0:00:27]}  Qxg4 {[%clk 0:01:39]} 26. hxg4 {[%clk 0:00:28]}  c5 {[%clk 0:01:40]} 27. Bf6 {[%clk 0:00:25]}  Re6 {[%clk 0:01:03]} 28. Bd8 {[%clk 0:00:24]}  Bg7 {[%clk 0:01:01]} 29. Rc1 {[%clk 0:00:18]}  Ne5 {[%clk 0:00:59]} 30. f3 {[%clk 0:00:15]}  Nd3 {[%clk 0:00:59]} 31. Rc2 {[%clk 0:00:13]}  Re1+ {[%clk 0:00:46]} 32. Kh2 {[%clk 0:00:13]}  c4 {[%clk 0:00:37]} 33. g3 {[%clk 0:00:10]}  Rc1 {[%clk 0:00:35]} 34. Re2 {[%clk 0:00:07]}  Rxc3 {[%clk 0:00:34]} 35. Re7 {[%clk 0:00:06]}  Ne5 {[%clk 0:00:30]} 36. f4 {[%clk 0:00:04]}  Nxg4+ {[%clk 0:00:29]} 37. Kg2 {[%clk 0:00:04]}  Re3 {[%clk 0:00:26]} 38. Rd7 {[%clk 0:00:03]}  c3 {[%clk 0:00:25]} 39. f5 {[%clk 0:00:04]}  c2 {[%clk 0:00:14]} 40. fxg6+ {[%clk 0:00:03]}  Kg8 {[%clk 0:00:12]} 0-1


[Site "https://www.chess.com"]

[Event "Titled Tuesday Blitz April 11 Early 2023"]
[White "lolliNOPE"]
[Black "Jain Kashish Manoj"]
[BlackFideId "35081098"]
[WhiteElo "2175"]
[BlackElo "2191"]
[Result "0-1"]
[Round "06"]
[TimeControl "180+2"]
[Date "2023.04.11"]
[WhiteClock "0:00:40"]
[BlackClock "0:01:31"]

1. e4 {[%clk 0:02:57]}  c5 {[%clk 0:02:57]} 2. Nf3 {[%clk 0:02:57]}  d6 {[%clk 0:02:58]} 3. d4 {[%clk 0:02:58]}  cxd4 {[%clk 0:02:59]} 4. Nxd4 {[%clk 0:02:58]}  Nf6 {[%clk 0:02:59]} 5. Nc3 {[%clk 0:02:59]}  Nc6 {[%clk 0:03:00]} 6. Bg5 {[%clk 0:02:59]}  e6 {[%clk 0:03:00]} 7. Qd2 {[%clk 0:02:59]}  a6 {[%clk 0:02:57]} 8. O-O-O {[%clk 0:02:58]}  Bd7 {[%clk 0:02:58]} 9. f4 {[%clk 0:02:58]}  b5 {[%clk 0:02:56]} 10. e5 {[%clk 0:02:36]}  dxe5 {[%clk 0:02:51]} 11. Nxc6 {[%clk 0:02:36]}  Bxc6 {[%clk 0:02:52]} 12. Qxd8+ {[%clk 0:02:35]}  Rxd8 {[%clk 0:02:53]} 13. Rxd8+ {[%clk 0:02:35]}  Kxd8 {[%clk 0:02:53]} 14. fxe5 {[%clk 0:02:35]}  h6 {[%clk 0:02:54]} 15. Bh4 {[%clk 0:02:13]}  g5 {[%clk 0:02:53]} 16. exf6 {[%clk 0:01:53]}  gxh4 {[%clk 0:02:52]} 17. Bd3 {[%clk 0:01:46]}  Bxg2 {[%clk 0:02:47]} 18. Rd1 {[%clk 0:01:43]}  Kc7 {[%clk 0:02:46]} 19. a4 {[%clk 0:01:25]}  b4 {[%clk 0:02:30]} 20. Ne2 {[%clk 0:01:25]}  a5 {[%clk 0:02:20]} 21. Bb5 {[%clk 0:01:21]}  Bd6 {[%clk 0:02:13]} 22. Nd4 {[%clk 0:01:13]}  Rd8 {[%clk 0:02:04]} 23. Be2 {[%clk 0:00:56]}  Bf4+ {[%clk 0:01:48]} 24. Kb1 {[%clk 0:00:55]}  Kb6 {[%clk 0:01:35]} 25. Nb3 {[%clk 0:00:39]}  Rxd1+ {[%clk 0:01:33]} 26. Bxd1 {[%clk 0:00:39]}  Bxh2 {[%clk 0:01:30]} 27. Bh5 {[%clk 0:00:40]}  Be5 {[%clk 0:01:31]} 28. Bxf7 {[%clk 0:00:40]}  Bxf6 {[%clk 0:01:31]} 29. Bxe6 {[%clk 0:00:40]}  h3 {[%clk 0:01:31]} 0-1


[Site "https://www.chess.com"]

[Event "Titled Tuesday Blitz April 11 Early 2023"]
[White "Vaibhav, Suri"]
[Black "Chylewski, Patryk"]
[WhiteFideId "5045185"]
[BlackFideId "1186191"]
[WhiteElo "2510"]
[BlackElo "2163"]
[Result "1-0"]
[Round "06"]
[TimeControl "180+2"]
[Date "2023.04.11"]
[WhiteClock "0:00:58"]
[BlackClock "0:01:09"]

1. e4 {[%clk 0:03:00]}  c6 {[%clk 0:02:58]} 2. d4 {[%clk 0:02:56]}  d5 {[%clk 0:02:59]} 3. Nc3 {[%clk 0:02:56]}  dxe4 {[%clk 0:02:59]} 4. Nxe4 {[%clk 0:02:57]}  Nd7 {[%clk 0:03:00]} 5. Nf3 {[%clk 0:02:56]}  Ngf6 {[%clk 0:03:00]} 6. Ned2 {[%clk 0:02:57]}  e6 {[%clk 0:02:57]} 7. g3 {[%clk 0:02:56]}  b6 {[%clk 0:02:53]} 8. Bg2 {[%clk 0:02:57]}  Bb7 {[%clk 0:02:54]} 9. O-O {[%clk 0:02:52]}  Be7 {[%clk 0:02:54]} 10. Ne5 {[%clk 0:02:48]}  Rc8 {[%clk 0:02:36]} 11. Ndc4 {[%clk 0:02:39]}  O-O {[%clk 0:02:35]} 12. Qe2 {[%clk 0:02:34]}  b5 {[%clk 0:02:20]} 13. Nxd7 {[%clk 0:02:21]}  Qxd7 {[%clk 0:02:21]} 14. Na5 {[%clk 0:02:19]}  Qxd4 {[%clk 0:02:18]} 15. Nxb7 {[%clk 0:01:40]}  Qb6 {[%clk 0:02:18]} 16. a4 {[%clk 0:01:40]}  b4 {[%clk 0:01:48]} 17. c4 {[%clk 0:01:33]}  Qxb7 {[%clk 0:01:44]} 18. Be3 {[%clk 0:01:33]}  Rfd8 {[%clk 0:01:41]} 19. Rfd1 {[%clk 0:01:32]}  Qc7 {[%clk 0:01:34]} 20. Bf4 {[%clk 0:01:22]}  Bd6 {[%clk 0:01:23]} 21. Rxd6 {[%clk 0:01:20]}  Rxd6 {[%clk 0:01:24]} 22. c5 {[%clk 0:01:20]}  Ne8 {[%clk 0:01:12]} 23. cxd6 {[%clk 0:01:16]}  Nxd6 {[%clk 0:01:13]} 24. Rd1 {[%clk 0:01:16]}  Rd8 {[%clk 0:01:09]} 25. Qd3 {[%clk 0:00:58]} 1-0


[Site "https://www.chess.com"]

[Event "Titled Tuesday Blitz April 11 Early 2023"]
[White "Idani, Pouya"]
[Black "Omelja, Artem"]
[WhiteFideId "12510130"]
[BlackFideId "14119846"]
[WhiteElo "2574"]
[BlackElo "2404"]
[Result "1-0"]
[Round "06"]
[TimeControl "180+2"]
[Date "2023.04.11"]
[WhiteClock "0:00:54"]
[BlackClock "0:01:30"]

1. e4 {[%clk 0:03:00]}  c5 {[%clk 0:02:58]} 2. Nc3 {[%clk 0:02:59]}  d6 {[%clk 0:02:55]} 3. d4 {[%clk 0:02:58]}  cxd4 {[%clk 0:02:55]} 4. Qxd4 {[%clk 0:02:59]}  Nc6 {[%clk 0:02:54]} 5. Qd2 {[%clk 0:02:59]}  g6 {[%clk 0:02:53]} 6. b3 {[%clk 0:02:58]}  Bg7 {[%clk 0:02:54]} 7. Bb2 {[%clk 0:02:57]}  Nf6 {[%clk 0:02:52]} 8. O-O-O {[%clk 0:02:57]}  O-O {[%clk 0:02:53]} 9. f3 {[%clk 0:02:49]}  Bd7 {[%clk 0:02:51]} 10. Kb1 {[%clk 0:02:41]}  Rc8 {[%clk 0:02:47]} 11. g4 {[%clk 0:02:39]}  Qa5 {[%clk 0:02:43]} 12. Nd5 {[%clk 0:02:07]}  Qxd2 {[%clk 0:02:42]} 13. Rxd2 {[%clk 0:02:06]}  Nxd5 {[%clk 0:02:42]} 14. exd5 {[%clk 0:01:58]}  Ne5 {[%clk 0:02:30]} 15. h4 {[%clk 0:01:37]}  f5 {[%clk 0:02:27]} 16. g5 {[%clk 0:01:28]}  f4 {[%clk 0:02:27]} 17. Bh3 {[%clk 0:01:29]}  Bxh3 {[%clk 0:02:26]} 18. Rxh3 {[%clk 0:01:30]}  Rf5 {[%clk 0:01:56]} 19. Ne2 {[%clk 0:01:26]}  Nd7 {[%clk 0:01:50]} 20. c4 {[%clk 0:01:13]}  Nc5 {[%clk 0:01:41]} 21. Bxg7 {[%clk 0:01:06]}  Kxg7 {[%clk 0:01:41]} 22. Nd4 {[%clk 0:01:07]}  Rf7 {[%clk 0:01:41]} 23. h5 {[%clk 0:01:02]}  gxh5 {[%clk 0:01:30]} 24. Rxh5 {[%clk 0:01:03]}  Re8 {[%clk 0:01:30]} 25. Rdh2 {[%clk 0:00:57]}  Kg6 {[%clk 0:01:30]} 26. Rh6+ {[%clk 0:00:55]}  Kxg5 {[%clk 0:01:30]} 27. R2h5# {[%clk 0:00:54]} 1-0


[Site "https://www.chess.com"]

[Event "Titled Tuesday Blitz April 11 Early 2023"]
[White "Dushyant Sharma"]
[Black "HSH1987"]
[WhiteFideId "25065130"]
[WhiteElo "2198"]
[BlackElo "2677"]
[Result "0-1"]
[Round "06"]
[TimeControl "180+2"]
[Date "2023.04.11"]
[WhiteClock "0:00:11"]
[BlackClock "0:00:17"]

1. e4 {[%clk 0:02:56]}  e5 {[%clk 0:02:59]} 2. Nf3 {[%clk 0:02:57]}  Nc6 {[%clk 0:02:58]} 3. Nc3 {[%clk 0:02:58]}  Nf6 {[%clk 0:02:58]} 4. Bb5 {[%clk 0:02:58]}  d6 {[%clk 0:02:55]} 5. d4 {[%clk 0:02:58]}  Bd7 {[%clk 0:02:55]} 6. O-O {[%clk 0:02:56]}  Be7 {[%clk 0:02:55]} 7. Bg5 {[%clk 0:02:45]}  exd4 {[%clk 0:02:53]} 8. Nxd4 {[%clk 0:02:45]}  O-O {[%clk 0:02:53]} 9. Nxc6 {[%clk 0:02:45]}  bxc6 {[%clk 0:02:49]} 10. Bd3 {[%clk 0:02:45]}  h6 {[%clk 0:02:49]} 11. Bh4 {[%clk 0:02:44]}  Nh7 {[%clk 0:02:47]} 12. Bxe7 {[%clk 0:02:41]}  Qxe7 {[%clk 0:02:48]} 13. f4 {[%clk 0:02:42]}  Rab8 {[%clk 0:02:46]} 14. b3 {[%clk 0:02:41]}  Rfe8 {[%clk 0:02:44]} 15. Kh1 {[%clk 0:02:41]}  Qf6 {[%clk 0:02:42]} 16. Qd2 {[%clk 0:02:39]}  Nf8 {[%clk 0:02:42]} 17. Rae1 {[%clk 0:02:38]}  Qd8 {[%clk 0:02:19]} 18. e5 {[%clk 0:02:31]}  f6 {[%clk 0:01:57]} 19. exd6 {[%clk 0:02:24]}  cxd6 {[%clk 0:01:54]} 20. f5 {[%clk 0:01:30]}  Qa5 {[%clk 0:01:41]} 21. Ne4 {[%clk 0:01:08]}  Qxd2 {[%clk 0:01:39]} 22. Nxd2 {[%clk 0:01:09]}  d5 {[%clk 0:01:34]} 23. c4 {[%clk 0:01:09]}  Re5 {[%clk 0:01:30]} 24. Nf3 {[%clk 0:01:08]}  Rxe1 {[%clk 0:01:24]} 25. Rxe1 {[%clk 0:01:09]}  Kf7 {[%clk 0:01:18]} 26. Kg1 {[%clk 0:01:00]}  a5 {[%clk 0:01:17]} 27. Kf2 {[%clk 0:00:45]}  a4 {[%clk 0:01:13]} 28. Rb1 {[%clk 0:00:44]}  axb3 {[%clk 0:01:11]} 29. axb3 {[%clk 0:00:38]}  Ke7 {[%clk 0:00:33]} 30. b4 {[%clk 0:00:31]}  dxc4 {[%clk 0:00:25]} 31. Bxc4 {[%clk 0:00:26]}  Bxf5 {[%clk 0:00:25]} 32. Re1+ {[%clk 0:00:26]}  Kd7 {[%clk 0:00:18]} 33. Nd4 {[%clk 0:00:25]}  Rxb4 {[%clk 0:00:17]} 34. Nxf5 {[%clk 0:00:23]}  Rxc4 {[%clk 0:00:17]} 35. Re7+ {[%clk 0:00:23]}  Kd8 {[%clk 0:00:15]} 36. Rf7 {[%clk 0:00:15]}  Rf4+ {[%clk 0:00:15]} 37. Ke3 {[%clk 0:00:14]}  Rxf5 {[%clk 0:00:16]} 38. Rxf8+ {[%clk 0:00:15]}  Ke7 {[%clk 0:00:16]} 39. Rg8 {[%clk 0:00:15]}  Kf7 {[%clk 0:00:17]} 40. Rc8 {[%clk 0:00:16]}  Re5+ {[%clk 0:00:17]} 41. Kf4 {[%clk 0:00:16]}  Re6 {[%clk 0:00:18]} 42. g4 {[%clk 0:00:17]}  Kg6 {[%clk 0:00:17]} 43. h4 {[%clk 0:00:17]}  h5 {[%clk 0:00:16]} 44. gxh5+ {[%clk 0:00:12]}  Kxh5 {[%clk 0:00:17]} 45. Kf5 {[%clk 0:00:10]}  Re5+ {[%clk 0:00:17]} 46. Kf4 {[%clk 0:00:11]}  c5 {[%clk 0:00:18]} 47. Rh8+ {[%clk 0:00:09]}  Kg6 {[%clk 0:00:18]} 48. Rc8 {[%clk 0:00:10]}  Rd5 {[%clk 0:00:17]} 49. Rc7 {[%clk 0:00:10]}  Rd4+ {[%clk 0:00:17]} 50. Kg3 {[%clk 0:00:10]}  c4 {[%clk 0:00:18]} 51. Kh3 {[%clk 0:00:10]}  Kh6 {[%clk 0:00:17]} 52. Kg3 {[%clk 0:00:10]}  g6 {[%clk 0:00:17]} 53. Rc8 {[%clk 0:00:11]}  f5 {[%clk 0:00:17]} 54. Kh3 {[%clk 0:00:10]}  Rd3+ {[%clk 0:00:16]} 55. Kg2 {[%clk 0:00:11]}  c3 {[%clk 0:00:17]} 56. Rh8+ {[%clk 0:00:10]}  Kg7 {[%clk 0:00:17]} 57. Rc8 {[%clk 0:00:11]}  Kh6 {[%clk 0:00:17]} 58. Rh8+ {[%clk 0:00:11]}  Kg7 {[%clk 0:00:16]} 59. Rc8 {[%clk 0:00:12]}  Rd2+ {[%clk 0:00:17]} 60. Kg3 {[%clk 0:00:12]}  c2 {[%clk 0:00:17]} 61. Kf4 {[%clk 0:00:12]}  Kf7 {[%clk 0:00:17]} 62. Kg5 {[%clk 0:00:12]}  Rg2+ {[%clk 0:00:17]} 63. Kh6 {[%clk 0:00:13]}  Ke6 {[%clk 0:00:17]} 64. Rc6+ {[%clk 0:00:09]}  Kd5 {[%clk 0:00:17]} 65. Rc8 {[%clk 0:00:09]}  Kd4 {[%clk 0:00:17]} 66. h5 {[%clk 0:00:10]}  gxh5 {[%clk 0:00:17]} 67. Kxh5 {[%clk 0:00:11]}  Kd3 {[%clk 0:00:17]} 68. Kh4 {[%clk 0:00:11]}  Kd2 {[%clk 0:00:17]} 69. Kh3 {[%clk 0:00:11]}  Re2 {[%clk 0:00:17]} 70. Rd8+ {[%clk 0:00:12]}  Ke1 {[%clk 0:00:17]} 71. Rc8 {[%clk 0:00:12]}  Kd1 {[%clk 0:00:17]} 72. Kg3 {[%clk 0:00:11]}  c1=Q {[%clk 0:00:17]} 0-1


[Site "https://www.chess.com"]

[Event "Titled Tuesday Blitz April 11 Early 2023"]
[White "Itgelt, Khuyagtsogt"]
[Black "Chernov, Mikhail"]
[WhiteFideId "4902912"]
[BlackFideId "24143170"]
[WhiteElo "2227"]
[BlackElo "2113"]
[Result "1-0"]
[Round "06"]
[TimeControl "180+2"]
[Date "2023.04.11"]
[WhiteClock "0:01:03"]
[BlackClock "0:00:23"]

1. c4 {[%clk 0:02:59]}  c5 {[%clk 0:02:59]} 2. Nf3 {[%clk 0:02:55]}  Nc6 {[%clk 0:02:59]} 3. Nc3 {[%clk 0:02:56]}  e5 {[%clk 0:02:59]} 4. e3 {[%clk 0:02:53]}  f5 {[%clk 0:03:00]} 5. d4 {[%clk 0:02:53]}  e4 {[%clk 0:03:00]} 6. Ne5 {[%clk 0:02:51]}  Nf6 {[%clk 0:02:44]} 7. Be2 {[%clk 0:02:38]}  Be7 {[%clk 0:02:36]} 8. O-O {[%clk 0:02:33]}  d6 {[%clk 0:02:33]} 9. Nxc6 {[%clk 0:02:33]}  bxc6 {[%clk 0:02:34]} 10. dxc5 {[%clk 0:02:32]}  dxc5 {[%clk 0:02:34]} 11. Qxd8+ {[%clk 0:02:32]}  Kxd8 {[%clk 0:02:29]} 12. b3 {[%clk 0:02:32]}  Be6 {[%clk 0:02:25]} 13. Ba3 {[%clk 0:02:32]}  Kc7 {[%clk 0:02:24]} 14. Na4 {[%clk 0:02:27]}  Nd7 {[%clk 0:02:23]} 15. Bb2 {[%clk 0:02:28]}  Rhg8 {[%clk 0:02:10]} 16. f3 {[%clk 0:02:21]}  exf3 {[%clk 0:01:58]} 17. Bxf3 {[%clk 0:02:22]}  g6 {[%clk 0:01:56]} 18. Rad1 {[%clk 0:02:21]}  Nb6 {[%clk 0:01:46]} 19. Be5+ {[%clk 0:02:18]}  Kb7 {[%clk 0:01:42]} 20. Nc3 {[%clk 0:02:18]}  Rad8 {[%clk 0:01:38]} 21. Nb5 {[%clk 0:02:13]}  Nc8 {[%clk 0:01:30]} 22. a3 {[%clk 0:01:49]}  Kb6 {[%clk 0:01:25]} 23. Bc7+ {[%clk 0:01:49]}  Kb7 {[%clk 0:01:18]} 24. Bxd8 {[%clk 0:01:47]}  Bxd8 {[%clk 0:01:19]} 25. Nd6+ {[%clk 0:01:47]}  Kc7 {[%clk 0:01:16]} 26. Nxc8 {[%clk 0:01:46]}  Bxc8 {[%clk 0:01:17]} 27. Rd3 {[%clk 0:01:41]}  Re8 {[%clk 0:01:13]} 28. Kf2 {[%clk 0:01:38]}  Bh4+ {[%clk 0:01:12]} 29. g3 {[%clk 0:01:38]}  Bg5 {[%clk 0:01:12]} 30. h4 {[%clk 0:01:38]}  Bh6 {[%clk 0:01:11]} 31. b4 {[%clk 0:01:34]}  cxb4 {[%clk 0:01:05]} 32. axb4 {[%clk 0:01:35]}  Re7 {[%clk 0:01:05]} 33. Ra1 {[%clk 0:01:34]}  a6 {[%clk 0:01:00]} 34. b5 {[%clk 0:01:16]}  cxb5 {[%clk 0:00:55]} 35. cxb5 {[%clk 0:01:16]}  Re6 {[%clk 0:00:33]} 36. Rc3+ {[%clk 0:01:03]}  Kb8 {[%clk 0:00:30]} 37. bxa6 {[%clk 0:01:03]}  Bxa6 {[%clk 0:00:31]} 38. Rb1+ {[%clk 0:01:04]}  Ka7 {[%clk 0:00:23]} 39. Rc7+ {[%clk 0:01:03]} 1-0


[Site "https://www.chess.com"]

[Event "Titled Tuesday Blitz April 11 Early 2023"]
[White "Krysa, Leandro"]
[Black "Nurgaliyeva, Zarina"]
[WhiteFideId "116807"]
[BlackFideId "13730096"]
[WhiteElo "2489"]
[BlackElo "2134"]
[Result "1-0"]
[Round "06"]
[TimeControl "180+2"]
[Date "2023.04.11"]
[WhiteClock "0:00:33"]
[BlackClock "0:00:16"]

1. e4 {[%clk 0:03:00]}  e5 {[%clk 0:02:59]} 2. Nf3 {[%clk 0:02:59]}  Nc6 {[%clk 0:02:56]} 3. d4 {[%clk 0:03:00]}  exd4 {[%clk 0:02:52]} 4. Nxd4 {[%clk 0:03:00]}  Qf6 {[%clk 0:02:45]} 5. Nf3 {[%clk 0:02:51]}  Bb4+ {[%clk 0:02:42]} 6. c3 {[%clk 0:02:49]}  Bc5 {[%clk 0:02:42]} 7. Bc4 {[%clk 0:02:46]}  h6 {[%clk 0:02:31]} 8. O-O {[%clk 0:02:43]}  Nge7 {[%clk 0:02:31]} 9. a4 {[%clk 0:02:32]}  a5 {[%clk 0:02:29]} 10. Na3 {[%clk 0:02:28]}  Bxa3 {[%clk 0:02:01]} 11. Rxa3 {[%clk 0:02:28]}  O-O {[%clk 0:01:57]} 12. Re1 {[%clk 0:02:25]}  d6 {[%clk 0:01:57]} 13. h3 {[%clk 0:02:21]}  Ng6 {[%clk 0:01:54]} 14. Bf1 {[%clk 0:02:20]}  Be6 {[%clk 0:01:41]} 15. Nd4 {[%clk 0:02:14]}  Nce5 {[%clk 0:01:13]} 16. Nxe6 {[%clk 0:02:05]}  fxe6 {[%clk 0:01:12]} 17. Be3 {[%clk 0:02:04]}  Rad8 {[%clk 0:00:58]} 18. Ra1 {[%clk 0:01:47]}  c5 {[%clk 0:00:54]} 19. Qe2 {[%clk 0:01:34]}  Nf4 {[%clk 0:00:34]} 20. Bxf4 {[%clk 0:01:33]}  Qxf4 {[%clk 0:00:34]} 21. Rad1 {[%clk 0:01:33]}  Qg5 {[%clk 0:00:24]} 22. Kh1 {[%clk 0:01:26]}  Rf6 {[%clk 0:00:22]} 23. Qd2 {[%clk 0:01:17]}  Qh4 {[%clk 0:00:21]} 24. g3 {[%clk 0:01:15]}  Qh5 {[%clk 0:00:19]} 25. f4 {[%clk 0:00:51]}  Nc6 {[%clk 0:00:19]} 26. Qe2 {[%clk 0:00:42]}  Qf7 {[%clk 0:00:17]} 27. Rd2 {[%clk 0:00:36]}  g5 {[%clk 0:00:17]} 28. f5 {[%clk 0:00:33]}  exf5 {[%clk 0:00:16]} 29. exf5 {[%clk 0:00:33]}  Rxf5 {[%clk 0:00:17]} 30. Bg2 {[%clk 0:00:34]}  Ne5 {[%clk 0:00:16]} 31. Bd5 {[%clk 0:00:33]} 1-0


[Site "https://www.chess.com"]